[Event "Titled Tuesday Blitz December 20 Early 2022"]
[White "ChessicallyInclined"]
[Black "Anata, Choudhury"]
[BlackFideId "10215026"]
[WhiteElo "2693"]
[BlackElo "2172"]
[Result "1-0"]
[Round "04"]
[TimeControl "180+2"]
[Date "2022.12.20"]
[WhiteClock "0:01:22"]
[BlackClock "0:00:01"]

1. a3 {[%clk 0:03:00]}  d5 {[%clk 0:02:58]} 2. Nf3 {[%clk 0:02:58]}  Nf6 {[%clk 0:02:55]} 3. e3 {[%clk 0:02:54]}  c5 {[%clk 0:02:46]} 4. d4 {[%clk 0:02:53]}  cxd4 {[%clk 0:02:31]} 5. exd4 {[%clk 0:02:50]}  Nc6 {[%clk 0:02:30]} 6. Bd3 {[%clk 0:02:50]}  Bg4 {[%clk 0:02:29]} 7. Be3 {[%clk 0:02:44]}  e6 {[%clk 0:02:21]} 8. Nbd2 {[%clk 0:02:43]}  Bd6 {[%clk 0:02:19]} 9. h3 {[%clk 0:02:41]}  Bh5 {[%clk 0:02:18]} 10. Qe2 {[%clk 0:02:37]}  O-O {[%clk 0:02:17]} 11. O-O-O {[%clk 0:02:30]}  Rc8 {[%clk 0:02:03]} 12. g4 {[%clk 0:02:21]}  Bg6 {[%clk 0:02:02]} 13. h4 {[%clk 0:02:22]}  Bxd3 {[%clk 0:01:57]} 14. Qxd3 {[%clk 0:02:21]}  e5 {[%clk 0:01:53]} 15. dxe5 {[%clk 0:02:18]}  Nxe5 {[%clk 0:01:52]} 16. Nxe5 {[%clk 0:02:18]}  Bxe5 {[%clk 0:01:52]} 17. f4 {[%clk 0:02:15]}  Bb8 {[%clk 0:01:30]} 18. g5 {[%clk 0:02:08]}  Ng4 {[%clk 0:01:23]} 19. Bd4 {[%clk 0:02:06]}  Bxf4 {[%clk 0:01:22]} 20. Qf3 {[%clk 0:02:05]}  Bxd2+ {[%clk 0:01:18]} 21. Rxd2 {[%clk 0:02:04]}  h5 {[%clk 0:01:04]} 22. gxh6 {[%clk 0:01:59]}  Nxh6 {[%clk 0:01:04]} 23. Rg1 {[%clk 0:01:59]}  f6 {[%clk 0:00:59]} 24. Be3 {[%clk 0:01:52]}  Nf7 {[%clk 0:00:25]} 25. Qg4 {[%clk 0:01:51]}  g5 {[%clk 0:00:14]} 26. hxg5 {[%clk 0:01:51]}  fxg5 {[%clk 0:00:13]} 27. Qf5 {[%clk 0:01:29]}  Qd6 {[%clk 0:00:03]} 28. Bxg5 {[%clk 0:01:26]}  Nxg5 {[%clk 0:00:02]} 29. Rxg5+ {[%clk 0:01:23]}  Kh8 {[%clk 0:00:01]} 30. Qh3+ {[%clk 0:01:22]} 1-0


[Site "https://www.chess.com"]

[Event "Titled Tuesday Blitz December 20 Early 2022"]
[White "Coachpoker"]
[Black "Boudreaux, Floyd"]
[BlackFideId "2016370"]
[WhiteElo "2626"]
[BlackElo "2088"]
[Result "0-1"]
[Round "04"]
[TimeControl "180+2"]
[Date "2022.12.20"]
[WhiteClock "0:00:27"]
[BlackClock "0:00:07"]

1. d4 {[%clk 0:03:00]}  Nf6 {[%clk 0:02:58]} 2. c4 {[%clk 0:02:59]}  c5 {[%clk 0:02:58]} 3. Nf3 {[%clk 0:02:58]}  cxd4 {[%clk 0:02:57]} 4. Nxd4 {[%clk 0:02:58]}  e5 {[%clk 0:02:56]} 5. Nb5 {[%clk 0:02:58]}  d5 {[%clk 0:02:55]} 6. cxd5 {[%clk 0:02:59]}  Bc5 {[%clk 0:02:53]} 7. N5c3 {[%clk 0:02:58]}  O-O {[%clk 0:02:48]} 8. g3 {[%clk 0:02:58]}  Bf5 {[%clk 0:02:18]} 9. Bg2 {[%clk 0:02:57]}  e4 {[%clk 0:02:14]} 10. O-O {[%clk 0:02:54]}  h6 {[%clk 0:02:11]} 11. Be3 {[%clk 0:02:53]}  Bxe3 {[%clk 0:02:01]} 12. fxe3 {[%clk 0:02:54]}  Bg6 {[%clk 0:01:57]} 13. Qd4 {[%clk 0:02:54]}  Re8 {[%clk 0:01:37]} 14. Nd2 {[%clk 0:02:54]}  Nbd7 {[%clk 0:01:34]} 15. Ndxe4 {[%clk 0:02:51]}  Ng4 {[%clk 0:01:26]} 16. Nd6 {[%clk 0:02:41]}  Nxe3 {[%clk 0:01:24]} 17. Nxe8 {[%clk 0:02:38]}  Qxe8 {[%clk 0:01:22]} 18. Rac1 {[%clk 0:02:12]}  Nxf1 {[%clk 0:01:20]} 19. Rxf1 {[%clk 0:02:13]}  a6 {[%clk 0:01:14]} 20. e4 {[%clk 0:02:12]}  Ne5 {[%clk 0:01:12]} 21. h3 {[%clk 0:02:02]}  Rd8 {[%clk 0:01:09]} 22. Kh2 {[%clk 0:02:01]}  Qe7 {[%clk 0:01:07]} 23. Ne2 {[%clk 0:01:56]}  Qd6 {[%clk 0:01:02]} 24. Nf4 {[%clk 0:01:53]}  Rc8 {[%clk 0:00:58]} 25. Nd3 {[%clk 0:01:47]}  f6 {[%clk 0:00:53]} 26. Nxe5 {[%clk 0:01:44]}  fxe5 {[%clk 0:00:54]} 27. Qd2 {[%clk 0:01:41]}  Rc4 {[%clk 0:00:50]} 28. Rc1 {[%clk 0:01:36]}  Rd4 {[%clk 0:00:48]} 29. Qe2 {[%clk 0:01:34]}  Kh7 {[%clk 0:00:41]} 30. h4 {[%clk 0:01:31]}  Qb4 {[%clk 0:00:40]} 31. Re1 {[%clk 0:01:19]}  Rd2 {[%clk 0:00:32]} 32. Qe3 {[%clk 0:01:15]}  Qxb2 {[%clk 0:00:29]} 33. Rg1 {[%clk 0:01:14]}  Re2 {[%clk 0:00:27]} 34. Qb3 {[%clk 0:01:08]}  Bxe4 {[%clk 0:00:18]} 35. Qxb2 {[%clk 0:01:04]}  Rxb2 {[%clk 0:00:19]} 36. d6 {[%clk 0:01:04]}  Rd2 {[%clk 0:00:17]} 37. Kh3 {[%clk 0:00:54]}  Bxg2+ {[%clk 0:00:16]} 38. Rxg2 {[%clk 0:00:55]}  Rxd6 {[%clk 0:00:17]} 39. Rb2 {[%clk 0:00:54]}  b5 {[%clk 0:00:16]} 40. Kg4 {[%clk 0:00:51]}  Kg6 {[%clk 0:00:14]} 41. Re2 {[%clk 0:00:47]}  Kf6 {[%clk 0:00:14]} 42. Kf3 {[%clk 0:00:46]}  Kf5 {[%clk 0:00:12]} 43. Ke3 {[%clk 0:00:46]}  Kg4 {[%clk 0:00:11]} 44. Ke4 {[%clk 0:00:44]}  Kxg3 {[%clk 0:00:09]} 45. Kxe5 {[%clk 0:00:45]}  Rd8 {[%clk 0:00:08]} 46. Rc2 {[%clk 0:00:39]}  Kxh4 {[%clk 0:00:07]} 47. Rc7 {[%clk 0:00:38]}  g5 {[%clk 0:00:07]} 48. Rc6 {[%clk 0:00:39]}  h5 {[%clk 0:00:07]} 49. Rxa6 {[%clk 0:00:39]}  g4 {[%clk 0:00:07]} 50. Rh6 {[%clk 0:00:33]}  g3 {[%clk 0:00:07]} 51. Rg6 {[%clk 0:00:34]}  Kh3 {[%clk 0:00:05]} 52. Kf4 {[%clk 0:00:34]}  h4 {[%clk 0:00:05]} 53. Rg5 {[%clk 0:00:33]}  Rf8+ {[%clk 0:00:06]} 54. Ke4 {[%clk 0:00:32]}  g2 {[%clk 0:00:06]} 55. Ke3 {[%clk 0:00:27]}  Kh2 {[%clk 0:00:05]} 56. Rg4 {[%clk 0:00:27]}  h3 {[%clk 0:00:05]} 57. Rf4 {[%clk 0:00:26]}  g1=Q+ {[%clk 0:00:05]} 58. Ke2 {[%clk 0:00:25]}  Rxf4 {[%clk 0:00:04]} 59. a4 {[%clk 0:00:26]}  Qf2+ {[%clk 0:00:04]} 60. Kd3 {[%clk 0:00:26]}  Rd4+ {[%clk 0:00:05]} 61. Kc3 {[%clk 0:00:26]}  Qd2+ {[%clk 0:00:05]} 62. Kb3 {[%clk 0:00:27]}  Rb4+ {[%clk 0:00:06]} 63. Ka3 {[%clk 0:00:27]}  Qb2# {[%clk 0:00:07]} 0-1


[Site "https://www.chess.com"]

[Event "Titled Tuesday Blitz December 20 Early 2022"]
[White "De Firmian, Nick"]
[Black "larsmandreassen"]
[WhiteFideId "2000105"]
[WhiteElo "2460"]
[BlackElo "2215"]
[Result "1-0"]
[Round "04"]
[TimeControl "180+2"]
[Date "2022.12.20"]
[WhiteClock "0:00:32"]
[BlackClock "0:00:04"]

1. Nf3 {[%clk 0:03:00]}  d5 {[%clk 0:02:56]} 2. g3 {[%clk 0:03:01]}  e6 {[%clk 0:02:57]} 3. Bg2 {[%clk 0:03:01]}  Nf6 {[%clk 0:02:57]} 4. O-O {[%clk 0:03:02]}  Be7 {[%clk 0:02:56]} 5. c4 {[%clk 0:03:01]}  O-O {[%clk 0:02:57]} 6. d4 {[%clk 0:03:01]}  a6 {[%clk 0:02:51]} 7. b3 {[%clk 0:02:59]}  c6 {[%clk 0:02:47]} 8. Bb2 {[%clk 0:02:59]}  b6 {[%clk 0:02:47]} 9. Ne5 {[%clk 0:02:59]}  Bb7 {[%clk 0:02:47]} 10. Nd2 {[%clk 0:02:59]}  Nbd7 {[%clk 0:02:46]} 11. Ndf3 {[%clk 0:03:00]}  Ne4 {[%clk 0:02:46]} 12. a3 {[%clk 0:02:56]}  Ndf6 {[%clk 0:02:41]} 13. Rc1 {[%clk 0:02:55]}  Rc8 {[%clk 0:02:41]} 14. b4 {[%clk 0:02:54]}  c5 {[%clk 0:02:33]} 15. dxc5 {[%clk 0:02:50]}  bxc5 {[%clk 0:02:31]} 16. cxd5 {[%clk 0:02:49]}  Bxd5 {[%clk 0:02:28]} 17. bxc5 {[%clk 0:02:35]}  Rxc5 {[%clk 0:02:28]} 18. Qd4 {[%clk 0:02:20]}  Qa8 {[%clk 0:02:18]} 19. a4 {[%clk 0:02:11]}  Rfc8 {[%clk 0:02:16]} 20. Nd3 {[%clk 0:01:55]}  Rc4 {[%clk 0:02:11]} 21. Qe3 {[%clk 0:01:36]}  Rxc1 {[%clk 0:01:57]} 22. Rxc1 {[%clk 0:01:35]}  Rxc1+ {[%clk 0:01:57]} 23. Qxc1 {[%clk 0:01:36]}  h6 {[%clk 0:01:42]} 24. Nf4 {[%clk 0:01:31]}  Bc6 {[%clk 0:01:33]} 25. Ne5 {[%clk 0:01:26]}  Bb7 {[%clk 0:01:10]} 26. Qc7 {[%clk 0:01:23]}  Bc5 {[%clk 0:00:13]} 27. Qxf7+ {[%clk 0:01:19]}  Kh7 {[%clk 0:00:14]} 28. e3 {[%clk 0:00:59]}  Bd5 {[%clk 0:00:06]} 29. Qg6+ {[%clk 0:00:59]}  Kg8 {[%clk 0:00:06]} 30. Nd7 {[%clk 0:00:51]}  Nxf2 {[%clk 0:00:03]} 31. Nxf6+ {[%clk 0:00:45]}  Kf8 {[%clk 0:00:03]} 32. Nd7+ {[%clk 0:00:42]}  Ke7 {[%clk 0:00:04]} 33. Nxc5 {[%clk 0:00:32]} 1-0


[Site "https://www.chess.com"]

[Event "Titled Tuesday Blitz December 20 Early 2022"]
[White "Djeno, Drago"]
[Black "Hansch, Karsten"]
[WhiteFideId "14400421"]
[BlackFideId "24692239"]
[WhiteElo "2223"]
[BlackElo "2248"]
[Result "1-0"]
[Round "04"]
[TimeControl "180+2"]
[Date "2022.12.20"]
[WhiteClock "0:01:08"]
[BlackClock "0:00:02"]

1. d4 {[%clk 0:02:57]}  Nf6 {[%clk 0:03:00]} 2. Bg5 {[%clk 0:02:53]}  d5 {[%clk 0:02:59]} 3. Nf3 {[%clk 0:02:52]}  g6 {[%clk 0:02:55]} 4. Bxf6 {[%clk 0:02:51]}  exf6 {[%clk 0:02:56]} 5. c4 {[%clk 0:02:49]}  dxc4 {[%clk 0:02:55]} 6. e3 {[%clk 0:02:50]}  Bd6 {[%clk 0:02:52]} 7. Bxc4 {[%clk 0:02:50]}  O-O {[%clk 0:02:52]} 8. Nbd2 {[%clk 0:02:47]}  f5 {[%clk 0:02:52]} 9. Qe2 {[%clk 0:02:37]}  Nd7 {[%clk 0:02:51]} 10. h4 {[%clk 0:02:36]}  h5 {[%clk 0:02:48]} 11. Ng5 {[%clk 0:02:36]}  Nf6 {[%clk 0:02:28]} 12. O-O-O {[%clk 0:02:27]}  Qe7 {[%clk 0:02:07]} 13. Kb1 {[%clk 0:02:26]}  c6 {[%clk 0:02:07]} 14. f3 {[%clk 0:02:23]}  b5 {[%clk 0:02:07]} 15. Bd3 {[%clk 0:02:21]}  Re8 {[%clk 0:01:43]} 16. e4 {[%clk 0:02:17]}  fxe4 {[%clk 0:01:34]} 17. fxe4 {[%clk 0:02:15]}  Bg4 {[%clk 0:01:27]} 18. Ngf3 {[%clk 0:02:15]}  Bf4 {[%clk 0:01:17]} 19. e5 {[%clk 0:02:10]}  Nd5 {[%clk 0:01:13]} 20. Ne4 {[%clk 0:02:10]}  Qb4 {[%clk 0:00:49]} 21. a3 {[%clk 0:01:57]}  Bxf3 {[%clk 0:00:32]} 22. Qxf3 {[%clk 0:01:45]}  Qxd4 {[%clk 0:00:32]} 23. Bc2 {[%clk 0:01:42]}  Qxe5 {[%clk 0:00:29]} 24. Rhf1 {[%clk 0:01:34]}  Re7 {[%clk 0:00:16]} 25. g3 {[%clk 0:01:31]}  Bh6 {[%clk 0:00:10]} 26. Rxd5 {[%clk 0:01:16]}  cxd5 {[%clk 0:00:10]} 27. Nf6+ {[%clk 0:01:17]}  Kh8 {[%clk 0:00:10]} 28. Nxd5 {[%clk 0:01:18]}  Bg7 {[%clk 0:00:09]} 29. Qb3 {[%clk 0:01:17]}  Rd7 {[%clk 0:00:05]} 30. Rd1 {[%clk 0:01:16]}  Rad8 {[%clk 0:00:04]} 31. Nc3 {[%clk 0:01:10]}  Rxd1+ {[%clk 0:00:04]} 32. Nxd1 {[%clk 0:01:11]}  Rc8 {[%clk 0:00:02]} 33. Qxf7 {[%clk 0:01:08]} 1-0


[Site "https://www.chess.com"]

[Event "Titled Tuesday Blitz December 20 Early 2022"]
[White "Durin, Jean-Pierre"]
[Black "Azoulas, Mark"]
[WhiteFideId "26026600"]
[BlackFideId "2033208"]
[WhiteElo "1819"]
[BlackElo "2326"]
[Result "1-0"]
[Round "04"]
[TimeControl "180+2"]
[Date "2022.12.20"]
[WhiteClock "0:00:08"]
[BlackClock "0:00:10"]

1. d4 {[%clk 0:02:59]}  Nf6 {[%clk 0:02:59]} 2. Bg5 {[%clk 0:03:00]}  b6 {[%clk 0:02:56]} 3. Bxf6 {[%clk 0:03:00]}  exf6 {[%clk 0:02:56]} 4. c4 {[%clk 0:03:00]}  Bb7 {[%clk 0:02:57]} 5. Nc3 {[%clk 0:03:01]}  c5 {[%clk 0:02:57]} 6. e3 {[%clk 0:03:01]}  Nc6 {[%clk 0:02:56]} 7. Nf3 {[%clk 0:02:58]}  cxd4 {[%clk 0:02:48]} 8. exd4 {[%clk 0:02:57]}  Bb4 {[%clk 0:02:47]} 9. Qd2 {[%clk 0:02:53]}  O-O {[%clk 0:02:47]} 10. Be2 {[%clk 0:02:52]}  Re8 {[%clk 0:02:47]} 11. O-O {[%clk 0:02:52]}  d5 {[%clk 0:02:46]} 12. Rfe1 {[%clk 0:02:34]}  dxc4 {[%clk 0:02:39]} 13. Bxc4 {[%clk 0:02:35]}  Qd7 {[%clk 0:02:30]} 14. a3 {[%clk 0:02:30]}  Bxc3 {[%clk 0:02:22]} 15. bxc3 {[%clk 0:02:30]}  Na5 {[%clk 0:02:20]} 16. Be2 {[%clk 0:02:30]}  Nb3 {[%clk 0:02:16]} 17. Qb2 {[%clk 0:02:12]}  Nxa1 {[%clk 0:02:16]} 18. Rxa1 {[%clk 0:02:13]}  Rac8 {[%clk 0:02:10]} 19. Rc1 {[%clk 0:02:03]}  Qe7 {[%clk 0:01:43]} 20. Kf1 {[%clk 0:01:45]}  Qe4 {[%clk 0:01:31]} 21. Re1 {[%clk 0:01:42]}  Qf5 {[%clk 0:01:23]} 22. h3 {[%clk 0:01:11]}  Qa5 {[%clk 0:01:20]} 23. Rc1 {[%clk 0:00:51]}  Qf5 {[%clk 0:01:11]} 24. c4 {[%clk 0:00:41]}  Rcd8 {[%clk 0:00:58]} 25. d5 {[%clk 0:00:39]}  Ba6 {[%clk 0:00:46]} 26. Nd4 {[%clk 0:00:38]}  Qe5 {[%clk 0:00:42]} 27. Kg1 {[%clk 0:00:21]}  Rc8 {[%clk 0:00:35]} 28. Bf1 {[%clk 0:00:18]}  Rc5 {[%clk 0:00:18]} 29. Qc3 {[%clk 0:00:17]}  Rec8 {[%clk 0:00:17]} 30. Nc6 {[%clk 0:00:17]}  Qxc3 {[%clk 0:00:16]} 31. Rxc3 {[%clk 0:00:18]}  Kf8 {[%clk 0:00:11]} 32. Nxa7 {[%clk 0:00:14]}  Ra8 {[%clk 0:00:10]} 33. Nc6 {[%clk 0:00:14]}  Bb7 {[%clk 0:00:10]} 34. Nb4 {[%clk 0:00:11]}  b5 {[%clk 0:00:08]} 35. f3 {[%clk 0:00:07]}  bxc4 {[%clk 0:00:08]} 36. Rxc4 {[%clk 0:00:05]}  Rxc4 {[%clk 0:00:08]} 37. Bxc4 {[%clk 0:00:06]}  Ke7 {[%clk 0:00:09]} 38. Nc6+ {[%clk 0:00:05]}  Bxc6 {[%clk 0:00:08]} 39. dxc6 {[%clk 0:00:05]}  Rxa3 {[%clk 0:00:08]} 40. Bd5 {[%clk 0:00:05]}  Kd6 {[%clk 0:00:08]} 41. Be4 {[%clk 0:00:05]}  g6 {[%clk 0:00:08]} 42. g4 {[%clk 0:00:05]}  Ra2 {[%clk 0:00:07]} 43. Kf1 {[%clk 0:00:05]}  Rb2 {[%clk 0:00:08]} 44. Ke1 {[%clk 0:00:04]}  Rb5 {[%clk 0:00:08]} 45. Kf1 {[%clk 0:00:05]}  f5 {[%clk 0:00:08]} 46. gxf5 {[%clk 0:00:05]}  gxf5 {[%clk 0:00:09]} 47. Bd3 {[%clk 0:00:05]}  Rc5 {[%clk 0:00:08]} 48. Kf2 {[%clk 0:00:05]}  Kxc6 {[%clk 0:00:08]} 49. Kg3 {[%clk 0:00:05]}  Kd6 {[%clk 0:00:09]} 50. Kf4 {[%clk 0:00:05]}  Ke6 {[%clk 0:00:09]} 51. Bb1 {[%clk 0:00:06]}  Kf6 {[%clk 0:00:09]} 52. Ba2 {[%clk 0:00:06]}  Rb5 {[%clk 0:00:09]} 53. Bc4 {[%clk 0:00:06]}  Rb4 {[%clk 0:00:10]} 54. Kg3 {[%clk 0:00:07]}  Rxc4 {[%clk 0:00:10]} 55. f4 {[%clk 0:00:07]}  h5 {[%clk 0:00:11]} 56. Kh4 {[%clk 0:00:08]}  Rxf4+ {[%clk 0:00:10]} 57. Kg3 {[%clk 0:00:08]} 1-0


[Site "https://www.chess.com"]

[Event "Titled Tuesday Blitz December 20 Early 2022"]
[White "FairChess_on_YouTube"]
[Black "SlipperySpeedster"]
[WhiteElo "3072"]
[BlackElo "2551"]
[Result "1-0"]
[Round "04"]
[TimeControl "180+2"]
[Date "2022.12.20"]
[WhiteClock "0:00:05"]
[BlackClock "0:00:03"]

1. e4 {[%clk 0:03:00]}  e5 {[%clk 0:02:59]} 2. Nf3 {[%clk 0:02:53]}  Nf6 {[%clk 0:02:58]} 3. Nxe5 {[%clk 0:02:51]}  d6 {[%clk 0:02:58]} 4. Nxf7 {[%clk 0:02:51]}  Kxf7 {[%clk 0:02:58]} 5. d4 {[%clk 0:02:49]}  Be7 {[%clk 0:02:44]} 6. Nc3 {[%clk 0:02:48]}  Re8 {[%clk 0:02:42]} 7. Bc4+ {[%clk 0:02:45]}  Be6 {[%clk 0:02:23]} 8. Bxe6+ {[%clk 0:02:37]}  Kxe6 {[%clk 0:02:24]} 9. f4 {[%clk 0:02:26]}  Kf7 {[%clk 0:02:23]} 10. e5 {[%clk 0:02:24]}  dxe5 {[%clk 0:02:22]} 11. fxe5 {[%clk 0:02:24]}  Kg8 {[%clk 0:01:50]} 12. O-O {[%clk 0:02:21]}  Nd5 {[%clk 0:01:42]} 13. Qg4 {[%clk 0:02:12]}  Nxc3 {[%clk 0:01:34]} 14. bxc3 {[%clk 0:02:12]}  Bf8 {[%clk 0:01:27]} 15. Rb1 {[%clk 0:02:04]}  b6 {[%clk 0:01:22]} 16. Bh6 {[%clk 0:01:17]}  Qd7 {[%clk 0:00:32]} 17. e6 {[%clk 0:01:16]}  Rxe6 {[%clk 0:00:31]} 18. Rxf8+ {[%clk 0:01:09]}  Kxf8 {[%clk 0:00:31]} 19. Bxg7+ {[%clk 0:00:52]}  Ke8 {[%clk 0:00:22]} 20. Rf1 {[%clk 0:00:34]}  Nc6 {[%clk 0:00:12]} 21. Rf8+ {[%clk 0:00:24]}  Ke7 {[%clk 0:00:09]} 22. Qg5+ {[%clk 0:00:22]}  Kd6 {[%clk 0:00:08]} 23. Rxa8 {[%clk 0:00:12]}  Qf7 {[%clk 0:00:08]} 24. h3 {[%clk 0:00:08]}  Rg6 {[%clk 0:00:05]} 25. Be5+ {[%clk 0:00:08]}  Kd7 {[%clk 0:00:05]} 26. Qf4 {[%clk 0:00:06]}  Qd5 {[%clk 0:00:05]} 27. Qf5+ {[%clk 0:00:06]}  Re6 {[%clk 0:00:03]} 28. Qxh7+ {[%clk 0:00:05]}  Ne7 {[%clk 0:00:04]} 29. Rxa7 {[%clk 0:00:04]}  Rc6 {[%clk 0:00:03]} 30. Rxc7+ {[%clk 0:00:03]}  Rxc7 {[%clk 0:00:03]} 31. Bxc7 {[%clk 0:00:04]}  Qe6 {[%clk 0:00:03]} 32. Be5 {[%clk 0:00:04]}  Qc4 {[%clk 0:00:03]} 33. Bf6 {[%clk 0:00:03]}  Qe6 {[%clk 0:00:02]} 34. Qxe7+ {[%clk 0:00:04]}  Qxe7 {[%clk 0:00:03]} 35. Bxe7 {[%clk 0:00:05]} 1-0


[Site "https://www.chess.com"]

[Event "Titled Tuesday Blitz December 20 Early 2022"]
[White "Felix-Rose"]
[Black "Chesstrainer1"]
[WhiteElo "2299"]
[BlackElo "2467"]
[Result "0-1"]
[Round "04"]
[TimeControl "180+2"]
[Date "2022.12.20"]
[WhiteClock "0:00:28"]
[BlackClock "0:00:20"]

1. e4 {[%clk 0:03:00]}  c5 {[%clk 0:02:55]} 2. Nf3 {[%clk 0:03:00]}  e6 {[%clk 0:02:55]} 3. d4 {[%clk 0:03:00]}  cxd4 {[%clk 0:02:56]} 4. Nxd4 {[%clk 0:03:01]}  Nf6 {[%clk 0:02:56]} 5. Nc3 {[%clk 0:03:00]}  Nc6 {[%clk 0:02:56]} 6. Ndb5 {[%clk 0:02:57]}  d6 {[%clk 0:02:56]} 7. Bf4 {[%clk 0:02:56]}  e5 {[%clk 0:02:56]} 8. Bg5 {[%clk 0:02:56]}  a6 {[%clk 0:02:56]} 9. Na3 {[%clk 0:02:57]}  b5 {[%clk 0:02:57]} 10. Nd5 {[%clk 0:02:57]}  Be7 {[%clk 0:02:57]} 11. Bxf6 {[%clk 0:02:58]}  Bxf6 {[%clk 0:02:58]} 12. c3 {[%clk 0:02:59]}  Rb8 {[%clk 0:02:52]} 13. Be2 {[%clk 0:02:53]}  Bg5 {[%clk 0:02:51]} 14. O-O {[%clk 0:02:53]}  O-O {[%clk 0:02:51]} 15. Nc2 {[%clk 0:02:53]}  a5 {[%clk 0:02:36]} 16. a3 {[%clk 0:02:39]}  Kh8 {[%clk 0:02:22]} 17. b4 {[%clk 0:02:32]}  f5 {[%clk 0:02:12]} 18. exf5 {[%clk 0:02:31]}  Bxf5 {[%clk 0:02:11]} 19. Bg4 {[%clk 0:02:29]}  Bg6 {[%clk 0:01:57]} 20. Nce3 {[%clk 0:02:28]}  Ne7 {[%clk 0:01:42]} 21. Nxe7 {[%clk 0:02:22]}  Qxe7 {[%clk 0:01:43]} 22. Nd5 {[%clk 0:02:22]}  Qa7 {[%clk 0:01:41]} 23. Qe2 {[%clk 0:01:53]}  Bh4 {[%clk 0:01:33]} 24. g3 {[%clk 0:01:51]}  Bg5 {[%clk 0:01:33]} 25. Kg2 {[%clk 0:01:48]}  Be8 {[%clk 0:01:28]} 26. Bf3 {[%clk 0:01:40]}  Bc6 {[%clk 0:01:23]} 27. Be4 {[%clk 0:01:39]}  Qb7 {[%clk 0:01:19]} 28. Rad1 {[%clk 0:01:38]}  axb4 {[%clk 0:01:12]} 29. axb4 {[%clk 0:01:38]}  Rf7 {[%clk 0:01:08]} 30. Qh5 {[%clk 0:01:34]}  Bh6 {[%clk 0:01:08]} 31. Rd3 {[%clk 0:01:23]}  Ra8 {[%clk 0:00:55]} 32. Re1 {[%clk 0:01:11]}  Ra2 {[%clk 0:00:52]} 33. Re2 {[%clk 0:01:12]}  g6 {[%clk 0:00:49]} 34. Qg4 {[%clk 0:00:37]}  Bd7 {[%clk 0:00:47]} 35. Nf6 {[%clk 0:00:38]}  Bxg4 {[%clk 0:00:46]} 36. Rxa2 {[%clk 0:00:33]}  Qc8 {[%clk 0:00:30]} 37. Nxg4 {[%clk 0:00:26]}  Qxg4 {[%clk 0:00:28]} 38. Bd5 {[%clk 0:00:26]}  Rf8 {[%clk 0:00:25]} 39. Ra7 {[%clk 0:00:25]}  e4 {[%clk 0:00:24]} 40. Rd4 {[%clk 0:00:24]}  Qf3+ {[%clk 0:00:24]} 41. Kh3 {[%clk 0:00:25]}  Bg7 {[%clk 0:00:21]} 42. Rxe4 {[%clk 0:00:25]}  Qf5+ {[%clk 0:00:20]} 43. Kg2 {[%clk 0:00:24]}  Qxd5 {[%clk 0:00:21]} 44. f3 {[%clk 0:00:24]}  Qd3 {[%clk 0:00:21]} 45. Kh3 {[%clk 0:00:25]}  Qxf3 {[%clk 0:00:21]} 46. Ree7 {[%clk 0:00:26]}  Qh5+ {[%clk 0:00:21]} 47. Kg2 {[%clk 0:00:26]}  Qf3+ {[%clk 0:00:21]} 48. Kh3 {[%clk 0:00:27]}  Qf5+ {[%clk 0:00:21]} 49. Kg2 {[%clk 0:00:27]}  Qf6 {[%clk 0:00:22]} 50. Red7 {[%clk 0:00:27]}  Qxc3 {[%clk 0:00:22]} 51. Rxd6 {[%clk 0:00:27]}  Qc2+ {[%clk 0:00:21]} 52. Kh3 {[%clk 0:00:27]}  Qf5+ {[%clk 0:00:21]} 53. Kg2 {[%clk 0:00:28]}  Qe4+ {[%clk 0:00:20]} 54. Kh3 {[%clk 0:00:28]}  Bf6 {[%clk 0:00:20]} 55. Rdd7 {[%clk 0:00:28]}  Qe6+ {[%clk 0:00:19]} 56. Kg2 {[%clk 0:00:27]}  Rc8 {[%clk 0:00:20]} 57. Rxh7+ {[%clk 0:00:28]}  Kg8 {[%clk 0:00:20]} 58. Rhd7 {[%clk 0:00:26]}  Rc2+ {[%clk 0:00:20]} 59. Kf3 {[%clk 0:00:27]}  Qf5+ {[%clk 0:00:19]} 60. Ke3 {[%clk 0:00:28]}  Bg5+ {[%clk 0:00:20]} 61. Kd4 {[%clk 0:00:27]}  Rd2+ {[%clk 0:00:20]} 62. Kc3 {[%clk 0:00:27]}  Rxd7 {[%clk 0:00:21]} 63. Ra8+ {[%clk 0:00:27]}  Kf7 {[%clk 0:00:21]} 64. g4 {[%clk 0:00:28]}  Rd3+ {[%clk 0:00:21]} 65. Kc2 {[%clk 0:00:28]}  Rd2+ {[%clk 0:00:21]} 66. Kc1 {[%clk 0:00:28]}  Qf1# {[%clk 0:00:20]} 0-1


[Site "https://www.chess.com"]